bitfinex-derivatives/quotes_ETHF0:USTF0_20251021
["timestamp","ask_amount","ask_price","bid_price","bid_amount"]
[1761026141997,0.46569,3864.5,3864.1,0.46572]
[1761026142203,0.6946,3864.3,3864.2,1.00242]
[1761026142693,1.41459588,3864.4,3864.3,0.4657]
[1761026142893,2.30766588,3864.7,3864.6,0.2225]
[1761026143100,2.89668111,3864.7,3864.6,0.5367]
[1761026143299,3.16388111,3864.7,3864.6,0.5367]
[1761026146404,2.89668111,3864.7,3864.6,0.7664]
[1761026146594,0.67824,3864.9,3864.8,0.7664]
[1761026146795,0.2126,3864.9,3864.8,1.23204]
[1761026147200,0.2126,3864.9,3864.5,0.1274]
[1761026147201,1.84199588,3865.4,3865.3,0.5367]
[1761026147496,2.43154646,3865.4,3865.3,0.7664]
[1761026147688,2.69874646,3865.4,3865.3,0.7664]
[1761026148594,3.16431646,3865.4,3865.3,0.7664]
[1761026149200,2.57476588,3865.4,3865.3,0.7664]
[1761026150003,2.30756588,3865.4,3865.3,0.7664]
[1761026151710,2.57476588,3865.4,3865.3,0.7664]
[1761026154011,2.57476588,3865.4,3865.3,0.3142]
[1761026154508,0.4656,3865.2,3865.1,0.3142]
[1761026154810,0.893,3865.2,3865.1,0.3142]
[1761026155004,1.1602,3865.2,3865.1,0.3142]
[1761026155211,0.6946,3865.2,3865.1,1.00231]
[1761026158305,1.1602,3865.2,3865.1,0.7664]
[1761026158611,1.1602,3865.2,3865.1,1.23201]
[1761026158811,0.893,3865.2,3865.1,1.23201]
[1761026159111,0.4274,3865.2,3865.1,1.23201]
[1761026160410,0.2231,3864.7,3864.6,0.69687]
[1761026160609,1.16706,3864.7,3864.6,0.455]
[1761026160915,0.434,3864.3,3864.2,0.455]
[1761026161214,0.434,3864.3,3864.2,0.92071]
[1761026161406,0.434,3864.3,3864.2,1.23521]
[1761026162008,0.434,3864.3,3864.2,0.7695]
[1761026162211,0.7014,3864.3,3864.2,0.7695]
[1761026163714,0.7014,3864.3,3864.2,0.3145]
[1761026163915,0.434,3864.3,3864.2,0.7695]
[1761026164911,0.2231,3864.3,3864.2,0.7695]
[1761026165815,0.434,3864.3,3864.2,0.7695]
[1761026167114,1.16715,3863.9,3863.8,0.54164756]
[1761026167318,2.58174588,3863.9,3863.8,0.31784756]
[1761026168117,2.31434588,3863.9,3863.8,0.77284756]
[1761026168918,1.84859588,3863.9,3863.8,0.77284756]
[1761026169518,0.2231,3863.9,3863.8,0.77284756]
[1761026171615,0.7014,3863.9,3863.8,0.54164756]
[1761026171919,0.7014,3863.9,3863.8,0.00334756]
[1761026172121,1.2908772,3863.9,3863.8,0.00334756]
[1761026173120,10.5628772,3863.9,3863.8,0.00334756]
[1761026175611,0.434,3862.9,3862.8,0.79538796]
[1761026175822,1.88045588,3863.1,3863.0,0.9047]
[1761026176116,2.10355588,3863.1,3863.0,0.9047]
[1761026176322,1.63769588,3863.1,3863.0,0.9047]
[1761026176521,1.84859588,3863.1,3863.0,0.9047]
[1761026176716,0.43652132,3863.1,3863.0,0.9075302]
[1761026177111,0.43652132,3863.1,3863.0,0.5411302]
[1761026177112,0.70042132,3863.1,3863.0,0.5411302]
[1761026177316,0.70042132,3863.1,3863.0,0.3410302]
[1761026177711,0.70042132,3863.1,3863.0,0.0028302]
[1761026177912,0.70042132,3863.1,3863.0,0.7002302]
[1761026178118,0.22562132,3863.1,3863.0,0.9254302]
[1761026178322,0.43962132,3863.1,3863.0,0.9254302]
[1761026178928,0.43962132,3863.1,3862.8,0.02588796]
[1761026178929,0.72976,3863.0,3862.8,0.02588796]
[1761026179227,0.72976,3863.0,3862.0,0.1352]
[1761026179228,0.4367,3862.3,3862.2,0.7839]
[1761026179424,0.7006,3862.3,3862.2,0.5587]
[1761026179929,0.7006,3862.3,3862.2,0.5609314]
[1761026180324,0.7006,3862.3,3862.2,0.0022314]
[1761026182725,0.7006,3862.3,3862.2,0.5609314]
[1761026182931,0.4367,3862.3,3862.2,0.7861314]
[1761026185930,0.46594,3862.4,3862.2,0.4479314]
[1761026186132,0.2227,3862.9,3862.8,0.7839]
[1761026186338,9.49522132,3863.1,3863.0,0.9226]
[1761026186527,9.70922132,3863.1,3863.0,0.9226]
[1761026186929,9.97312132,3863.1,3863.0,0.6974]
[1761026187432,9.97312132,3863.1,3863.0,0.4769]
[1761026187635,9.97312132,3863.1,3863.0,0.3382]
[1761026188235,9.97312132,3863.1,3863.0,0.6954]
[1761026188938,0.43922132,3863.1,3863.0,0.9077]
[1761026189636,0.70322132,3863.1,3863.0,0.9077]
[1761026190634,0.69298,3862.9,3862.5,0.3573]
[1761026190840,0.92328,3862.9,3862.8,0.4309]
[1761026191039,1.18728,3862.9,3862.8,0.2186]
[1761026191242,1.18728,3862.9,3862.8,0.5447]
[1761026191542,0.92328,3862.9,3862.8,0.757]
[1761026191840,1.18728,3862.9,3862.8,0.757]
[1761026192637,0.2271,3862.4,3862.3,0.2186]
[1761026192842,0.2271,3862.4,3862.2,0.4331314]
[1761026192843,0.4574,3862.3,3862.2,0.4331314]
[1761026193032,0.7214,3862.3,3862.2,0.2208314]
[1761026193229,0.7214,3862.3,3862.2,0.5469314]
[1761026193630,0.7214,3862.3,3862.2,0.3283314]
[1761026193838,0.7214,3862.3,3862.2,0.0022314]
[1761026195037,0.7214,3862.3,3862.2,0.3283314]
[1761026196044,0.4574,3862.3,3862.2,0.7592314]
[1761026196546,0.7214,3862.3,3862.2,0.3283314]
[1761026196844,0.7214,3862.3,3862.2,0.5469314]
[1761026197637,1.31318828,3862.3,3862.2,0.3283314]
[1761026198045,1.04918828,3862.3,3862.2,0.7592314]
[1761026198245,0.81900145,3862.3,3862.2,0.7592314]
[1761026198443,2.09454201,3862.9,3862.3,0.3261]
[1761026198444,0.2271,3862.9,3862.3,0.3261]
[1761026198642,1.18727,3862.9,3862.8,0.3261]
[1761026198844,1.18731,3862.6,3862.5,0.3572]
[1761026199147,1.77914612,3862.6,3862.5,0.3572]
[1761026199348,1.77914612,3862.6,3862.5,0.6833]
[1761026199750,10.31623612,3862.6,3862.5,0.8956]
[1761026203453,1.04923612,3862.6,3862.5,0.8956]
[1761026203850,0.93237333,3863.1,3863.0,0.8956]
[1761026203851,0.69547132,3863.1,3863.0,0.8956]
[1761026204149,1.51859559,3863.1,3863.0,0.8956]
[1761026204546,1.78259559,3863.1,3863.0,0.8956]
[1761026204853,1.78259559,3863.1,3863.0,0.6833]
[1761026207056,1.78259559,3863.1,3863.0,0.3261]
[1761026208449,1.31674559,3863.1,3862.6,0.46591]
[1761026208654,0.92329,3862.8,3862.7,0.5447]
[1761026208851,1.51611427,3862.8,3862.7,0.5447]
[1761026209554,0.59282427,3862.8,3862.7,1.2229]
[1761026209756,9.95796,3863.0,3862.9,0.3261]
[1761026209955,10.78387503,3863.0,3862.9,0.5447]
[1761026210556,11.04787503,3863.0,3862.9,0.5447]
[1761026210756,1.78287503,3863.0,3862.9,0.5447]
[1761026211153,1.18726,3863.0,3862.9,0.5447]
[1761026211353,1.78288924,3863.0,3862.9,0.5447]
[1761026211652,0.4574,3862.7,3862.6,0.3261]
[1761026211853,0.7214,3862.7,3862.6,0.5447]
[1761026212054,1.1873,3862.7,3862.6,0.5447]
[1761026212261,0.9233,3862.7,3862.6,0.5447]
[1761026212860,1.51897884,3862.7,3862.6,0.5447]
[1761026213354,0.59567884,3862.7,3862.6,1.22291]
[1761026213556,0.00252132,3863.1,3863.0,0.8956]
[1761026213753,0.46837132,3863.1,3863.0,0.8956]
[1761026213954,1.06405683,3863.1,3863.0,0.8956]
[1761026214362,1.29115683,3863.1,3863.0,0.8956]
[1761026214961,1.52145683,3863.1,3863.0,0.8956]
[1761026215157,1.29115683,3863.1,3863.0,0.8956]
[1761026215362,1.52145683,3863.1,3863.0,0.8956]
[1761026215663,1.78545683,3863.1,3863.0,0.8956]
[1761026216057,1.52145683,3863.1,3863.0,0.8956]
[1761026216255,1.29115683,3863.1,3863.0,0.8956]
[1761026216560,1.52145683,3863.1,3863.0,0.8956]
[1761026218764,1.29115683,3863.1,3863.0,0.8956]
[1761026218960,0.59820683,3863.1,3863.0,1.36146]
[1761026219158,0.59820683,3863.1,3863.0,0.8956]
[1761026219159,1.06405683,3863.1,3863.0,0.8956]
[1761026219459,0.59820683,3863.1,3863.0,1.36146]
[1761026220464,0.59820683,3863.1,3863.0,0.8956]
[1761026220664,1.06405683,3863.1,3863.0,0.8956]
[1761026221166,1.27635683,3863.1,3863.0,0.8956]
[1761026221463,1.49555683,3863.1,3863.0,0.8956]
[1761026222170,1.75925683,3863.1,3863.0,0.3261]
[1761026222664,0.68509,3862.7,3862.6,0.4292]
[1761026222873,0.89739,3862.7,3862.6,0.4292]
[1761026223259,0.89739,3862.7,3862.6,0.7626]
[1761026223461,0.00252132,3863.1,3862.8,0.7626]
[1761026223462,0.46587,3862.9,3862.8,0.7626]
[1761026223659,0.67817,3862.9,3862.8,0.7626]
[1761026224067,0.89737,3862.9,3862.8,0.7626]
[1761026224361,1.16107,3862.9,3862.8,0.5488]
[1761026224960,0.68067132,3863.1,3862.9,0.3334]
[1761026225157,0.68067132,3863.1,3863.0,0.8936]
[1761026225465,1.49553208,3863.1,3863.0,0.8936]
[1761026225763,0.59818208,3863.1,3863.0,1.35946]
[1761026226765,0.81048208,3863.1,3863.0,1.35946]
[1761026227062,0.59818208,3863.1,3863.0,1.35946]
[1761026228161,1.60789201,3863.9,3863.8,0.7626]
[1761026228361,1.2738469,3863.9,3863.8,0.7626]
[1761026229062,0.5958069,3863.9,3863.8,0.7626]
[1761026229262,0.67803,3864.1,3864.0,0.8936]
[1761026229466,1.49533982,3864.1,3864.0,0.8936]
[1761026230153,1.27613982,3864.1,3864.0,0.8936]
[1761026230866,1.49533982,3864.1,3864.0,0.8936]
[1761026231863,0.59810982,3864.1,3864.0,0.8936]
[1761026232168,1e-08,3864.1,3864.0,0.8936]
[1761026236666,0.21230001,3864.1,3864.0,0.8936]
[1761026236867,0.42250001,3864.1,3864.0,0.8936]
[1761026237071,1.83719148,3864.1,3864.0,0.8936]
[1761026237567,1.83719148,3864.1,3864.0,0.6798]
[1761026238063,1e-08,3864.1,3864.0,0.5601]
[1761026238456,0.22640001,3864.1,3864.0,0.5601]
[1761026238656,0.43660001,3864.1,3864.0,0.6835]
[1761026238869,0.22640001,3864.1,3864.0,0.8972]
[1761026239172,1e-08,3864.1,3864.0,0.5678]
[1761026240167,1.85129148,3864.1,3864.0,0.8972]
[1761026240671,0.43660001,3864.1,3864.0,0.8972]
[1761026240963,0.22640001,3864.1,3864.0,1.36294]
[1761026242165,1e-08,3864.1,3864.0,1.03354]
[1761026244771,1e-08,3864.1,3864.0,6.03354]
[1761026245072,9.76398147,3865.2,3865.1,0.5525]
[1761026245278,1.02774718,3865.2,3865.1,0.7662]
[1761026245980,1.02991995,3865.2,3865.1,0.76946088]
[1761026246570,1.29201995,3865.2,3865.1,0.76946088]
[1761026248380,1.29201995,3865.2,3865.1,0.00326088]
[1761026248968,6.29201995,3865.2,3865.1,0.00326088]
[1761026251186,6.29201995,3865.2,3864.5,0.4791]
[1761026251187,1.16267,3864.6,3864.5,0.4791]
[1761026251376,2.31386147,3864.6,3864.5,0.933]
[1761026252278,2.31386147,3864.6,3864.5,0.9357374]
[1761026252690,2.57736147,3864.6,3864.5,0.7130374]
[1761026253587,1.62879147,3864.6,3864.5,0.9357374]
[1761026253788,1.41469147,3864.6,3864.5,0.9357374]
[1761026254095,2.09442147,3864.9,3864.8,0.7953]
[1761026254686,1.62879147,3864.9,3864.8,0.7953]
[1761026254887,0.67973,3865.0,3864.9,0.7953]
[1761026255395,1.27145758,3865.0,3864.9,0.7953]
[1761026255599,0.59172758,3865.0,3864.9,0.7953]
[1761026255792,9.71477277,3865.2,3865.0,0.478]
[1761026255989,0.59170876,3865.1,3865.0,0.9319]
[1761026256798,0.80580876,3865.1,3865.0,0.9319]
[1761026257793,1.02520876,3865.1,3865.0,0.9319]
[1761026257996,1.28870876,3865.1,3865.0,0.7092]
[1761026260503,1.49080876,3865.1,3865.0,0.9319]
[1761026261504,1.75430876,3865.1,3865.0,0.9319]
[1761026262202,1.75430876,3865.1,3865.0,0.3414]
[1761026263607,1.75430876,3865.1,3865.0,0.7092]
[1761026264602,1.75430876,3865.1,3865.0,0.1366]
[1761026264813,1.75430876,3865.1,3864.5,0.0027374]
[1761026264814,1.16266,3864.6,3864.5,0.0027374]
[1761026264997,10.99736876,3864.6,3864.5,0.0027374]
[1761026265202,10.99736876,3864.6,3864.5,0.3441374]
[1761026266006,10.99736876,3864.6,3864.5,0.9346374]
[1761026266007,10.73386876,3864.6,3864.5,0.9346374]
[1761026266607,1.49086876,3864.6,3864.5,0.9346374]
[1761026268199,0.59170876,3864.6,3864.5,0.9346374]
[1761026268504,1.2725853,3864.8,3864.7,0.7953]
[1761026268808,0.59284518,3864.8,3864.7,0.7953]
[1761026269108,0.2141,3864.9,3864.8,0.7953]
[1761026269308,0.80693946,3864.9,3864.8,0.7953]
[1761026269510,1.27256946,3864.9,3864.8,0.7953]
[1761026269705,0.59283946,3864.9,3864.8,0.7953]
[1761026269904,0.80693946,3864.9,3864.8,0.7953]
[1761026270109,1.02633946,3864.9,3864.8,0.7953]
[1761026270301,1.28983946,3864.9,3864.8,0.7953]
[1761026270496,1.28983946,3864.9,3864.8,0.5726]
[1761026271600,1.02633946,3864.9,3864.8,0.7953]
[1761026271805,0.59283946,3864.9,3864.8,0.7953]
[1761026272006,0.80693946,3864.9,3864.8,0.7953]
[1761026272302,1.02633946,3864.9,3864.8,0.7953]
[1761026273612,1.28983946,3864.9,3864.8,0.7953]
[1761026274107,1.02633946,3864.9,3864.8,0.7953]
[1761026274412,1.49196946,3864.9,3864.8,0.7953]
[1761026277404,1.27256946,3864.9,3864.8,0.7953]
[1761026278606,1.05846946,3864.9,3864.8,0.7953]
[1761026281719,1.28356946,3864.9,3864.8,0.7953]
[1761026281910,1.51066946,3864.9,3864.8,0.7953]
[1761026282618,1.28356946,3864.9,3864.8,0.7953]
[1761026283417,1.05846946,3864.9,3864.8,1.26094]
[1761026283807,1.05846946,3864.9,3864.8,0.7953]
[1761026284004,0.59283946,3864.9,3864.8,1.26094]
[1761026284215,0.59283946,3864.9,3864.8,0.91954]
[1761026284411,0.59283946,3864.9,3864.7,1.41469147]
[1761026284412,1.28601299,3865.2,3865.1,0.4214]
[1761026284617,1.28600875,3865.2,3865.1,0.4214]
[1761026284817,1.28600875,3865.2,3865.1,0.7533]
[1761026285412,0.59531875,3865.2,3865.1,1.2189]
[1761026285616,1.06090875,3865.2,3865.1,0.7533]
[1761026286319,1.28600875,3865.2,3865.1,0.7533]
[1761026286929,1.51310875,3865.2,3865.1,0.7533]
[1761026288123,1.28600875,3865.2,3865.1,0.7533]
[1761026289023,0.58420243,3865.2,3865.1,6.2189]
[1761026289317,1.39493882,3866.0,3865.0,1.54179147]
[1761026289318,2.13049147,3865.4,3865.3,0.3319]
[1761026289819,2.13049147,3865.4,3865.3,0.5409]
[1761026290023,1.8690351,3865.4,3865.3,0.7533]
[1761026291330,0.45434363,3865.4,3865.3,0.7533]
[1761026291918,2.1326351,3865.4,3865.3,0.3319]
[1761026292118,1.1814,3865.2,3865.1,0.3319]
[1761026293119,0.91785,3864.7,3864.6,0.4214]
[1761026293622,0.91785,3864.7,3864.6,0.7533]
[1761026293810,0.4522,3864.7,3864.6,0.96224731]
[1761026294016,1.41469147,3865.1,3864.6,0.96224731]
[1761026294017,0.91781,3865.1,3865.0,0.8804]
[1761026295122,0.46561,3865.1,3865.0,0.8804]
[1761026295325,10.6508351,3865.4,3865.0,0.8804]
[1761026295326,0.45434363,3865.4,3865.3,0.7533]
[1761026296324,0.71794363,3865.4,3865.3,0.7533]
[1761026297128,0.45434363,3865.4,3865.3,0.7533]
[1761026299826,0.45434363,3865.4,3865.3,1.21888]
[1761026299827,0.00214363,3865.4,3865.3,1.21888]
[1761026301824,0.4409,3866.4,3866.3,0.5315]
[1761026302028,1.2929186,3866.4,3866.3,0.322]
[1761026302629,0.7045,3865.4,3865.3,1.38447358]
[1761026302827,0.2152,3864.7,3864.6,0.2095]
[1761026303028,0.2152,3864.7,3864.6,0.7432]
[1761026303224,0.00285218,3865.4,3865.0,0.3475]
[1761026303420,1.17292218,3865.4,3865.3,0.5315]
[1761026303730,1.76126844,3865.4,3865.3,0.5315]
[1761026305433,1.76126844,3865.4,3865.3,0.322]
[1761026305634,1.17011,3865.1,3865.0,0.3453]
[1761026305831,1.75845626,3865.1,3865.0,0.3453]
[1761026306021,1.75845626,3865.1,3865.0,0.6673]
[1761026306226,1.49485626,3865.1,3865.0,0.6673]
[1761026307037,1.75845626,3865.1,3865.0,0.6673]
[1761026307838,1.49485626,3865.1,3865.0,0.879]
[1761026314439,1.26915626,3865.1,3865.0,0.879]
[1761026314841,0.58834626,3865.1,3865.0,1.34462]
[1761026315042,0.00285218,3865.4,3865.3,0.7833]
[1761026315940,0.22805218,3865.4,3865.3,0.7833]
[1761026316143,0.81666892,3865.4,3865.3,0.7833]
[1761026317643,1.03626892,3865.4,3865.3,0.7833]
[1761026320640,0.59146892,3865.4,3865.3,1.24888]
[1761026321141,0.00285218,3865.4,3865.3,1.24888]
[1761026321948,0.44765218,3865.4,3865.3,0.7833]
[1761026322244,0.22805218,3865.4,3865.3,0.7833]
[1761026322449,0.81661411,3865.4,3865.3,0.7833]
[1761026323344,1.03621411,3865.4,3865.3,0.7833]
[1761026325662,0.59141411,3865.4,3865.3,0.7833]
[1761026326254,0.00285218,3865.4,3865.3,0.7833]
[1761026326761,0.59573403,3865.4,3865.3,0.7833]
[1761026326958,1.30403403,3865.4,3865.3,0.5545]
[1761026328664,1.04053403,3865.4,3865.3,0.7833]
[1761026329066,1.30403403,3865.4,3865.3,0.7833]
[1761026329765,1.76960403,3865.4,3865.3,0.7833]
[1761026331061,1.50610403,3865.4,3865.3,0.7833]
[1761026333758,1.04053403,3865.4,3865.3,1.24888]
[1761026335766,1.50610403,3865.4,3865.3,1.24888]
[1761026337662,1.04053403,3865.4,3865.3,1.24888]
[1761026340762,0.59573403,3865.4,3865.3,1.24888]
[1761026345173,0.81173403,3865.4,3865.3,1.24888]
[1761026345775,0.59573403,3865.4,3865.3,1.24888]
[1761026345976,0.81173403,3865.4,3865.3,1.24888]
[1761026346669,1.75810403,3865.4,3865.3,0.7833]
[1761026346867,1.75810403,3865.4,3865.3,0.5545]
[1761026347175,1.75810403,3865.4,3865.3,0.3279]
[1761026347774,1.02883403,3865.4,3865.3,0.7735]
[1761026348074,0.59573403,3865.4,3865.3,1.23908]
[1761026348980,0.81173403,3865.4,3865.3,1.23908]
[1761026351780,0.59573403,3865.4,3865.3,1.23908]
[1761026352684,0.81173403,3865.4,3865.3,1.23908]
[1761026352880,1.75810403,3865.4,3865.3,0.5576]
[1761026353281,1.49440403,3865.4,3865.3,0.7735]
[1761026354285,1.75810403,3865.4,3865.3,0.5576]
[1761026354486,1.02883403,3865.4,3865.1,0.3254]
[1761026354675,1.16239,3865.2,3865.1,0.3254]
[1761026354983,1.75527185,3865.2,3865.1,0.3254]
[1761026356084,1.16244,3864.8,3864.7,0.2297]
[1761026356284,0.59288185,3864.8,3864.7,0.4456]
[1761026356583,0.4548,3865.3,3865.2,0.7974]
[1761026356779,1.04778818,3865.3,3865.2,0.7974]
[1761026356978,1.31138818,3865.3,3865.2,0.5659]
[1761026357178,1.31138818,3865.3,3865.2,0.3375]
[1761026360889,1.31138818,3865.3,3865.2,0.5659]
[1761026361890,1.31138818,3865.3,3865.2,0.3375]
[1761026364479,1.31138818,3865.3,3865.2,0.5659]
[1761026364988,1.31138818,3865.3,3864.6,0.67535895]
[1761026364989,0.46563,3864.9,3864.8,0.3375]
[1761026365290,1.77701818,3864.9,3864.8,0.3375]
[1761026366791,1.18407,3864.6,3864.5,0.3677374]
[1761026367193,1.18407,3864.6,3864.5,0.7052374]
[1761026369296,2.59675142,3864.6,3864.5,0.3402374]
[1761026369590,3.18897705,3864.6,3864.5,0.3402374]
[1761026370388,3.18897705,3864.6,3864.5,0.5681374]
[1761026370894,3.18897705,3864.6,3864.5,0.7016374]
[1761026371092,2.92667705,3864.6,3864.5,0.9238374]
[1761026371293,1.51269563,3864.6,3864.5,0.9238374]
[1761026371494,0.59222563,3864.6,3864.5,0.9238374]
[1761026371694,2.60624063,3865.2,3864.5,0.9238374]
[1761026371695,0.2154,3865.0,3864.9,0.7826]
[1761026371884,0.80734391,3865.0,3864.9,0.7826]
[1761026372295,1.27295391,3865.0,3864.9,0.7826]
[1761026372593,1.49615391,3865.0,3864.9,0.7826]
[1761026372791,1.03054391,3865.0,3864.9,0.7826]
[1761026372987,0.59194391,3865.0,3864.9,1.24823]
[1761026373394,1.62938142,3865.3,3865.1,0.3325]
[1761026373699,0.80736966,3865.2,3865.1,0.7826]
[1761026374700,1.27295966,3865.2,3865.1,0.7826]
[1761026375300,1.49615966,3865.2,3865.1,0.7826]
[1761026376091,1.75845966,3865.2,3865.1,0.7826]
[1761026376698,1.49615966,3865.2,3865.1,0.7826]
[1761026377091,1.75845966,3865.2,3865.1,0.5604]
[1761026380695,1.75845966,3865.2,3865.1,0.7826]
[1761026381097,1.49615966,3865.2,3865.1,0.7826]
[1761026383105,1.75845966,3865.2,3865.1,0.7826]
[1761026383290,1.49615966,3865.2,3865.1,0.7826]
[1761026385403,0.4386,3864.9,3864.8,0.5604]
[1761026385603,0.4386,3864.9,3864.8,0.7826]
[1761026385804,1.03056966,3864.9,3864.8,0.7826]
[1761026386499,1.27299966,3864.9,3864.8,0.7826]
[1761026387408,1.27299966,3864.9,3864.8,1.24824]
[1761026387608,1.05759966,3864.9,3864.8,1.24824]
[1761026388212,0.59196966,3864.9,3864.8,1.24824]
[1761026388709,1.05759966,3864.9,3864.8,1.24824]
[1761026391721,1.27299966,3864.9,3864.8,0.7826]
[1761026391914,1.49619966,3864.9,3864.8,0.7826]
[1761026395021,0.59196966,3864.9,3864.8,1.24824]
[1761026395219,0.4386,3865.2,3865.1,0.7826]
[1761026395524,1.75960935,3865.2,3865.1,0.7826]
[1761026397623,1.49730935,3865.2,3865.1,1.2482]
[1761026398518,1.03171935,3865.2,3865.1,1.2482]
[1761026399419,1.27410935,3865.2,3865.1,1.2482]
[1761026399819,1.05870935,3865.2,3865.1,1.2482]
[1761026400116,0.59311935,3865.2,3865.1,1.2482]
[1761026400424,0.46559,3865.2,3865.1,0.9157]
[1761026400728,1.27730935,3865.2,3865.1,0.9157]
[1761026400919,1.27730935,3865.2,3865.1,1.2611]
[1761026401227,1.50230935,3865.2,3865.1,0.7955]
[1761026401523,1.50230935,3865.2,3865.1,1.2611]
[1761026401524,1.05870935,3865.2,3865.1,1.2611]
[1761026401729,1.50230935,3865.2,3865.1,0.7955]
[1761026402022,1.76590935,3865.2,3865.1,0.3454]
[1761026402224,1.03671935,3865.2,3865.1,0.7678]
[1761026402425,1.50230935,3865.2,3865.1,0.7678]
[1761026403419,0.81171935,3865.2,3865.1,0.7678]
[1761026403619,0.59311935,3865.2,3865.1,0.7678]
[1761026403821,0.81184402,3865.3,3865.2,0.7678]
[1761026404523,1.76602402,3865.3,3865.2,0.7678]
[1761026404830,0.59324402,3865.3,3865.2,1.23339]
[1761026405024,1.30044402,3865.3,3865.2,0.7678]
[1761026405536,1.30044402,3865.3,3865.2,0.5565]
[1761026406427,1.30044402,3865.3,3865.2,0.3454]
[1761026407224,0.90919,3865.2,3865.1,0.3454]
[1761026407425,2.91641544,3865.2,3865.1,0.3454]
[1761026407726,3.18001544,3865.2,3865.1,0.3454]
[1761026407932,3.18001544,3865.2,3865.1,0.5565]
[1761026408430,0.68424,3864.8,3864.7,0.2111]
[1761026408620,0.90924,3864.8,3864.7,0.7678]
[1761026408821,0.4436,3864.8,3864.7,0.7678]
[1761026409728,0.4436,3864.8,3864.7,0.3454]
[1761026409729,1.30040721,3864.8,3864.7,0.3454]
[1761026410230,0.7072,3864.6,3864.5,0.3481374]
[1761026410421,2.71438863,3864.6,3864.5,0.3481374]
[1761026410921,1.03680721,3864.6,3864.5,0.8961374]
[1761026411129,0.2186,3864.6,3864.5,0.8961374]
[1761026411332,0.2186,3864.8,3864.7,0.7678]
[1761026411627,1.03676437,3864.8,3864.7,0.7678]
[1761026411823,0.90925,3864.7,3864.6,0.3454]
[1761026412026,1.50241437,3864.7,3864.6,0.3454]
[1761026412434,1.76601437,3864.7,3864.6,0.3454]
[1761026412639,1.76601437,3864.7,3864.5,0.0027374]
[1761026412640,0.7072,3864.6,3864.5,0.0027374]
[1761026412830,2.71434579,3864.6,3864.5,0.3481374]
[1761026413334,3.18000579,3864.6,3864.5,0.3481374]
[1761026413530,2.45074579,3864.6,3864.5,1.1505174]
[1761026413736,1.03676437,3864.6,3864.5,1.3618174]
[1761026416539,0.4436,3864.6,3864.5,1.3618174]
[1761026416730,0.92995921,3865.3,3864.5,1.3618174]
[1761026416731,0.92995921,3865.3,3864.8,0.46564]
[1761026416928,0.89208,3865.3,3865.2,0.7792]
[1761026417128,1.7480734,3865.3,3865.2,0.7792]
[1761026417432,1.7480734,3865.3,3865.2,0.3334]
[1761026417734,1.4842734,3865.3,3865.2,0.7792]
[1761026418337,1.4842734,3865.3,3865.2,1.24479]
[1761026418338,1.0186934,3865.3,3865.2,1.24479]
[1761026421651,1.4842734,3865.3,3865.2,0.7792]
[1761026422036,1.0186934,3865.3,3865.2,1.24479]
[1761026422834,0.5921934,3865.3,3865.2,1.24479]
[1761026423634,0.8041934,3865.3,3865.2,1.24479]
[1761026423840,1.0186934,3865.3,3865.2,1.24479]
[1761026424540,1.4842734,3865.3,3865.2,0.7792]
[1761026424729,1.7480734,3865.3,3865.2,0.7792]
[1761026427744,1.7480734,3865.3,3865.2,0.3334]
[1761026429157,1.16991,3865.0,3864.9,0.3382]
[1761026429339,3.35266428,3865.0,3864.9,0.3382]
[1761026429648,2.76055532,3865.0,3864.9,0.3382]
[1761026429947,3.35265542,3865.0,3864.9,0.3382]
[1761026430248,3.35265542,3865.0,3864.9,0.5556]
[1761026432045,3.35265542,3865.0,3864.9,0.3382]
[1761026434345,0.5921001,3865.0,3864.9,1.24133]
[1761026434548,0.2291,3865.3,3865.2,1.24129]
[1761026434842,0.82123405,3865.3,3865.2,1.24129]
[1761026437942,1.28681405,3865.3,3865.2,1.24129]
[1761026438345,1.28681405,3865.3,3865.2,0.7757]
[1761026438652,1.49821405,3865.3,3865.2,0.7757]
[1761026440550,1.76201405,3865.3,3865.2,0.7757]
[1761026440753,1.76201405,3865.3,3865.2,0.5556]
[1761026440944,1.76201405,3865.3,3865.2,0.7757]
[1761026442151,0.4405,3864.8,3864.7,1.24135]
[1761026442342,0.2291,3865.1,3865.0,0.9106]
[1761026442547,1.28694112,3865.3,3865.2,0.7757]
[1761026442752,1.28694108,3865.3,3865.2,0.7757]
[1761026443148,1.49834108,3865.3,3865.2,0.7757]
[1761026446743,0.82136108,3865.3,3865.2,1.24129]
[1761026447851,1.39493882,3865.8,3865.2,1.24129]
[1761026447852,1.39540921,3866.4,3866.3,0.3382]
[1761026448053,1.39540921,3866.4,3866.3,0.7757]
[1761026448054,1.62450921,3866.4,3866.3,0.7757]
[1761026448254,2.229462,3866.4,3866.3,0.7757]
[1761026448444,1.29950279,3866.4,3866.3,0.5556]
[1761026448855,1.30193961,3866.4,3866.3,0.5556]
[1761026449152,1.03523961,3866.4,3866.3,0.7757]
[1761026451248,1.30193961,3866.4,3866.3,0.7757]
[1761026453258,1.03523961,3866.4,3866.3,0.7757]
[1761026453466,1.30193961,3866.4,3866.3,0.7757]
[1761026453763,0.59473961,3866.4,3866.3,0.7757]
[1761026454253,0.82383961,3866.4,3866.3,0.7757]
[1761026454468,1.03523961,3866.4,3866.3,0.7757]
[1761026454861,1.30193961,3866.4,3866.3,0.7757]
[1761026455251,0.70963682,3866.4,3866.3,0.7757]
[1761026455651,0.70963682,3866.4,3866.3,0.3382]
[1761026455850,1.30016127,3866.4,3866.3,0.3382]
[1761026456048,0.2291,3865.9,3865.8,0.3382]
[1761026456254,0.7072,3865.9,3865.8,0.3382]
[1761026456561,0.7072,3865.6,3865.5,0.6905]
[1761026456751,0.2291,3865.6,3865.5,0.9106]
[1761026457557,0.7072,3865.6,3865.5,0.9106]
[1761026457864,0.4405,3865.6,3865.5,0.9106]
[1761026458561,0.2291,3865.6,3865.5,0.9106]
[1761026458760,0.46553,3865.7,3865.6,0.7745]
[1761026459054,0.2099,3866.1,3866.0,0.9107]
[1761026459263,0.4312,3866.1,3866.0,0.9107]
[1761026459958,0.6978,3866.1,3866.0,0.9107]
[1761026460159,0.4312,3866.1,3866.0,0.9107]